[Event "***Titled Tuesday 3|2 Blitz"]
[Site "Chess.com"]
[Date "2017.02.07"]
[Round "4"]
[White "RitvarsReimanis"]
[Black "SergeiAza"]
[Result "1-0"]
[WhiteElo "2369"]
[BlackElo "2504"]
[TimeControl "180+2"]
[EndTime "13:59:37 PST"]
[Termination "RitvarsReimanis won by resignation"]

1. d4 {[%clk 0:03:02]} 1... d5 {[%clk 0:02:59.5]} 2. c4 {[%clk 0:03:00.2]} 2...
e6 {[%clk 0:02:59.3]} 3. Nc3 {[%clk 0:02:57.4]} 3... Be7 {[%clk 0:02:59.8]} 4.
Nf3 {[%clk 0:02:56.8]} 4... Nf6 {[%clk 0:03:00.2]} 5. cxd5 {[%clk 0:02:56.4]}
5... exd5 {[%clk 0:03:00.4]} 6. Bg5 {[%clk 0:02:57.3]} 6... c6 {[%clk
0:02:58.8]} 7. e3 {[%clk 0:02:58.5]} 7... Bf5 {[%clk 0:02:58]} 8. Bd3 {[%clk
0:03:00.2]} 8... Bxd3 {[%clk 0:02:58.1]} 9. Qxd3 {[%clk 0:03:02.1]} 9... Nbd7
{[%clk 0:02:58.4]} 10. O-O {[%clk 0:02:58.3]} 10... O-O {[%clk 0:02:59.1]} 11.
Rab1 {[%clk 0:02:59.6]} 11... Ne8 {[%clk 0:02:54.2]} 12. Bxe7 {[%clk 0:02:52.9]}
12... Qxe7 {[%clk 0:02:55.1]} 13. b4 {[%clk 0:02:52.1]} 13... b5 {[%clk
0:02:46.5]} 14. e4 {[%clk 0:02:49.1]} 14... dxe4 {[%clk 0:02:45.7]} 15. Nxe4
{[%clk 0:02:43]} 15... Nef6 {[%clk 0:02:40.7]} 16. Rfe1 {[%clk 0:02:38.1]} 16...
a5 {[%clk 0:02:22.8]} 17. d5 {[%clk 0:02:21.7]} 17... Nxe4 {[%clk 0:02:05.9]}
18. Rxe4 {[%clk 0:02:18.1]} 18... Qd6 {[%clk 0:02:05.3]} 19. Rd4 {[%clk
0:02:17.8]} 19... c5 {[%clk 0:01:57]} 20. bxc5 {[%clk 0:02:02.3]} 20... Nxc5
{[%clk 0:01:54.3]} 21. Qxb5 {[%clk 0:01:55.5]} 21... Rfb8 {[%clk 0:01:47.7]} 22.
Qf1 {[%clk 0:01:55.7]} 22... Rxb1 {[%clk 0:01:48.1]} 23. Qxb1 {[%clk 0:01:57.6]}
23... Rb8 {[%clk 0:01:47.9]} 24. Qe1 {[%clk 0:01:57.9]} 24... a4 {[%clk
0:01:41.1]} 25. g3 {[%clk 0:01:46.3]} 25... h6 {[%clk 0:01:39.3]} 26. Qe5 {[%clk
0:01:31.5]} 26... Rb1+ {[%clk 0:01:07.9]} 27. Kg2 {[%clk 0:01:30.9]} 27... Qa6
{[%clk 0:01:07.3]} 28. Nd2 {[%clk 0:01:18.5]} 28... Rd1 {[%clk 0:00:42.8]} 29.
d6 {[%clk 0:01:13.6]} 29... Qb7+ {[%clk 0:00:37.1]} 30. Nf3 {[%clk 0:00:54.5]}
30... Rd3 {[%clk 0:00:18.7]} 31. Rxd3 {[%clk 0:00:29.8]} 31... Nxd3 {[%clk
0:00:19.8]} 32. Qe8+ {[%clk 0:00:30.9]} 32... Kh7 {[%clk 0:00:20.4]} 33. d7
{[%clk 0:00:32.3]} 33... Ne1+ {[%clk 0:00:08.8]} 34. Qxe1 {[%clk 0:00:32.2]}
34... Qxd7 {[%clk 0:00:10.4]} 35. Qe4+ {[%clk 0:00:27.8]} 35... g6 {[%clk
0:00:11.7]} 36. h4 {[%clk 0:00:24.3]} 36... a3 {[%clk 0:00:11]} 37. h5 {[%clk
0:00:24.6]} 37... Qd6 {[%clk 0:00:08]} 38. Nh4 {[%clk 0:00:21.6]} 38... Kg7
{[%clk 0:00:07.2]} 39. hxg6 {[%clk 0:00:21.8]} 39... fxg6 {[%clk 0:00:08.5]} 40.
Nf3 {[%clk 0:00:23]} 40... Qc5 {[%clk 0:00:05.5]} 41. Qe5+ {[%clk 0:00:22.8]}
41... Qxe5 {[%clk 0:00:05.4]} 42. Nxe5 {[%clk 0:00:24.7]} 1-0

[Event "***Titled Tuesday 3|2 Blitz"]
[Site "Chess.com"]
[Date "2017.02.07"]
[Round "4"]
[White "Mornar1951"]
[Black "TheCount"]
[Result "1-0"]
[WhiteElo "2566"]
[BlackElo "2487"]
[TimeControl "180+2"]
[EndTime "13:59:39 PST"]
[Termination "Mornar1951 won by checkmate"]

1. Nf3 {[%clk 0:03:02]} 1... Nf6 {[%clk 0:03:00.3]} 2. c4 {[%clk 0:03:00.4]}
2... g6 {[%clk 0:03:00.7]} 3. Nc3 {[%clk 0:03:00.8]} 3... d5 {[%clk 0:03:01.9]}
4. d4 {[%clk 0:02:58.9]} 4... Bg7 {[%clk 0:03:02.4]} 5. Bf4 {[%clk 0:03:00.4]}
5... O-O {[%clk 0:03:02]} 6. Rc1 {[%clk 0:03:02]} 6... Be6 {[%clk 0:03:00.3]} 7.
Ng5 {[%clk 0:02:52.8]} 7... Bf5 {[%clk 0:02:48.7]} 8. e3 {[%clk 0:02:46.3]} 8...
c5 {[%clk 0:02:44.7]} 9. dxc5 {[%clk 0:02:35]} 9... Nbd7 {[%clk 0:02:45]} 10.
cxd5 {[%clk 0:02:21.9]} 10... Nxc5 {[%clk 0:02:25.2]} 11. b4 {[%clk 0:02:12.1]}
11... Nfe4 {[%clk 0:01:59.8]} 12. Ngxe4 {[%clk 0:01:52.9]} 12... Nxe4 {[%clk
0:02:01.7]} 13. Nxe4 {[%clk 0:01:50.9]} 13... Bxe4 {[%clk 0:02:03.6]} 14. d6
{[%clk 0:01:51.8]} 14... Qb6 {[%clk 0:01:23.3]} 15. f3 {[%clk 0:01:48.3]} 15...
Qxb4+ {[%clk 0:01:10.6]} 16. Kf2 {[%clk 0:01:48.7]} 16... Bc6 {[%clk 0:01:06.6]}
17. dxe7 {[%clk 0:01:49.6]} 17... Rfe8 {[%clk 0:00:55.7]} 18. Bd6 {[%clk
0:01:50.4]} 18... Qb2+ {[%clk 0:00:52.8]} 19. Qc2 {[%clk 0:01:47.5]} 19... Qf6
{[%clk 0:00:48.2]} 20. Ba3 {[%clk 0:01:25.2]} 20... Qh4+ {[%clk 0:00:48.9]} 21.
g3 {[%clk 0:01:12.3]} 21... Qh5 {[%clk 0:00:49.5]} 22. Be2 {[%clk 0:01:10.9]}
22... Bf6 {[%clk 0:00:49.7]} 23. e4 {[%clk 0:00:55.9]} 23... Qh3 {[%clk
0:00:38.1]} 24. Bb2 {[%clk 0:00:45.5]} 24... Bxb2 {[%clk 0:00:36]} 25. Qxb2
{[%clk 0:00:47.4]} 25... Rxe7 {[%clk 0:00:37.4]} 26. Bf1 {[%clk 0:00:40.5]}
26... Qh5 {[%clk 0:00:32.6]} 27. h4 {[%clk 0:00:34.3]} 27... Rd8 {[%clk
0:00:32.4]} 28. Be2 {[%clk 0:00:31.3]} 28... Red7 {[%clk 0:00:22]} 29. Rhd1
{[%clk 0:00:29.5]} 29... Qa5 {[%clk 0:00:22.9]} 30. Rxd7 {[%clk 0:00:23.1]}
30... Rxd7 {[%clk 0:00:24.8]} 31. Rd1 {[%clk 0:00:21.6]} 31... Qc5+ {[%clk
0:00:25.6]} 32. Kg2 {[%clk 0:00:18.2]} 32... Rxd1 {[%clk 0:00:25.2]} 33. Bxd1
{[%clk 0:00:20.1]} 33... Qe3 {[%clk 0:00:26.8]} 34. Bb3 {[%clk 0:00:20]} 34...
a6 {[%clk 0:00:19.9]} 35. h5 {[%clk 0:00:20.5]} 35... gxh5 {[%clk 0:00:20.4]}
36. Qf6 {[%clk 0:00:19.9]} 36... Be8 {[%clk 0:00:17.1]} 37. Kh3 {[%clk
0:00:18.4]} 37... Qg1 {[%clk 0:00:13.1]} 38. Qg5+ {[%clk 0:00:17.7]} 38... Kf8
{[%clk 0:00:14.1]} 39. Qxh5 {[%clk 0:00:18.2]} 39... Qh1+ {[%clk 0:00:11.8]} 40.
Kg4 {[%clk 0:00:19.1]} 40... Bd7+ {[%clk 0:00:12.5]} 41. Kg5 {[%clk 0:00:19.8]}
41... Qc1+ {[%clk 0:00:11.6]} 42. f4 {[%clk 0:00:19.3]} 42... Qc3 {[%clk
0:00:10.2]} 43. Qxf7# {[%clk 0:00:19.3]} 1-0

[Event "***Titled Tuesday 3|2 Blitz"]
[Site "Chess.com"]
[Date "2017.02.07"]
[Round "4"]
[White "twitchTriniCupid"]
[Black "AllStarShark"]
[Result "1-0"]
[WhiteElo "2127"]
[BlackElo "2255"]
[TimeControl "180+2"]
[EndTime "13:59:43 PST"]
[Termination "twitchTriniCupid won on time"]

1. Nf3 {[%clk 0:03:02]} 1... d5 {[%clk 0:02:57.2]} 2. c4 {[%clk 0:02:59.1]} 2...
e6 {[%clk 0:02:57.5]} 3. g3 {[%clk 0:02:59.5]} 3... Nf6 {[%clk 0:02:58.4]} 4.
Bg2 {[%clk 0:03:00.5]} 4... Be7 {[%clk 0:02:59.9]} 5. O-O {[%clk 0:03:00.9]}
5... O-O {[%clk 0:03:01.3]} 6. Qc2 {[%clk 0:03:01.8]} 6... b6 {[%clk 0:02:56]}
7. cxd5 {[%clk 0:03:01.4]} 7... exd5 {[%clk 0:02:55.6]} 8. Ne5 {[%clk
0:03:01.8]} 8... Bb7 {[%clk 0:02:53.2]} 9. d4 {[%clk 0:03:02.5]} 9... Nfd7
{[%clk 0:02:47.6]} 10. Nd3 {[%clk 0:02:50.3]} 10... c6 {[%clk 0:02:44.1]} 11.
Bf4 {[%clk 0:02:49]} 11... Nf6 {[%clk 0:02:43.1]} 12. Nc3 {[%clk 0:02:45.2]}
12... Nbd7 {[%clk 0:02:42.2]} 13. Ne5 {[%clk 0:02:45.7]} 13... Nxe5 {[%clk
0:02:41.1]} 14. Bxe5 {[%clk 0:02:38.4]} 14... Bd6 {[%clk 0:02:33.7]} 15. e4
{[%clk 0:02:25.1]} 15... Bxe5 {[%clk 0:02:28.8]} 16. dxe5 {[%clk 0:02:24.7]}
16... Nxe4 {[%clk 0:02:28.5]} 17. Nxe4 {[%clk 0:02:25.1]} 17... dxe4 {[%clk
0:02:28.6]} 18. Bxe4 {[%clk 0:02:26]} 18... g6 {[%clk 0:02:27.4]} 19. Rad1
{[%clk 0:02:23.7]} 19... Qe7 {[%clk 0:02:26.5]} 20. f4 {[%clk 0:02:24.3]} 20...
c5 {[%clk 0:02:24]} 21. Rd6 {[%clk 0:02:20.1]} 21... Rfd8 {[%clk 0:02:19.9]} 22.
Rfd1 {[%clk 0:02:20.1]} 22... Rxd6 {[%clk 0:02:11.1]} 23. Rxd6 {[%clk 0:02:22]}
23... Bxe4 {[%clk 0:02:09.4]} 24. Qxe4 {[%clk 0:02:22.3]} 24... Rd8 {[%clk
0:02:10.2]} 25. Qd5 {[%clk 0:02:12.7]} 25... Rxd6 {[%clk 0:02:05.8]} 26. exd6
{[%clk 0:02:13.7]} 26... Qe1+ {[%clk 0:02:06.5]} 27. Kg2 {[%clk 0:02:11.9]}
27... Qe2+ {[%clk 0:02:06.2]} 28. Kg1 {[%clk 0:01:45.9]} 28... Qe1+ {[%clk
0:01:53.5]} 29. Kg2 {[%clk 0:01:46.3]} 29... Qe2+ {[%clk 0:01:54.3]} 30. Kg1
{[%clk 0:01:03.9]} 30... Qe1+ {[%clk 0:01:37.9]} 31. Kg2 {[%clk 0:01:01.6]}
31... Qe2+ {[%clk 0:01:38.6]} 32. Kh3 {[%clk 0:01:01.1]} 32... Qf1+ {[%clk
0:01:26.6]} 33. Kg4 {[%clk 0:01:01]} 33... h5+ {[%clk 0:01:23.8]} 34. Kg5 {[%clk
0:01:00.3]} 34... Qe2 {[%clk 0:01:14.9]} 35. Kf6 {[%clk 0:00:35]} 35... Qe8
{[%clk 0:01:01.5]} 36. Qe5 {[%clk 0:00:28.8]} 36... Qf8 {[%clk 0:00:33.3]} 37.
Kg5 {[%clk 0:00:18.3]} 37... Qd8+ {[%clk 0:00:27.7]} 38. Qf6 {[%clk 0:00:18.6]}
38... Qd7 {[%clk 0:00:26.2]} 39. Kh6 {[%clk 0:00:17.9]} 1-0

[Event "***Titled Tuesday 3|2 Blitz"]
[Site "Chess.com"]
[Date "2017.02.07"]
[Round "4"]
[White "DanielNaroditsky"]
[Black "Alexander_Moskalenko"]
[Result "1-0"]
[WhiteElo "2736"]
[BlackElo "2692"]
[TimeControl "180+2"]
[EndTime "13:59:47 PST"]
[Termination "DanielNaroditsky won by resignation"]

1. e4 {[%clk 0:03:01.6]} 1... c6 {[%clk 0:02:58.2]} 2. d4 {[%clk 0:03:01.6]}
2... d5 {[%clk 0:03:00.1]} 3. Nd2 {[%clk 0:03:03]} 3... dxe4 {[%clk 0:03:00.9]}
4. Nxe4 {[%clk 0:03:04.9]} 4... Nf6 {[%clk 0:03:02.6]} 5. Nxf6+ {[%clk
0:03:04.2]} 5... exf6 {[%clk 0:03:04.5]} 6. Bc4 {[%clk 0:03:04.2]} 6... Bd6
{[%clk 0:03:05.6]} 7. Ne2 {[%clk 0:03:05.6]} 7... O-O {[%clk 0:03:07.2]} 8. Ng3
{[%clk 0:03:06.4]} 8... Re8+ {[%clk 0:03:07.3]} 9. Ne2 {[%clk 0:03:01.5]} 9...
Qc7 {[%clk 0:03:00.1]} 10. h3 {[%clk 0:02:57.6]} 10... Bf5 {[%clk 0:02:38.4]}
11. O-O {[%clk 0:02:58.6]} 11... Nd7 {[%clk 0:02:39.3]} 12. Bd3 {[%clk
0:02:33.9]} 12... Bxd3 {[%clk 0:02:39.6]} 13. Qxd3 {[%clk 0:02:35.8]} 13... Rad8
{[%clk 0:02:24.3]} 14. c4 {[%clk 0:02:15.9]} 14... Nc5 {[%clk 0:02:18.2]} 15.
Qf3 {[%clk 0:02:10.6]} 15... Ne4 {[%clk 0:02:14.3]} 16. Be3 {[%clk 0:02:11.7]}
16... g6 {[%clk 0:01:54.8]} 17. g4 {[%clk 0:01:52.8]} 17... Ng5 {[%clk
0:01:15.8]} 18. Qg2 {[%clk 0:01:52.9]} 18... Kg7 {[%clk 0:01:17.2]} 19. c5
{[%clk 0:01:43.5]} 19... Bf8 {[%clk 0:01:17]} 20. h4 {[%clk 0:01:34.7]} 20...
Ne6 {[%clk 0:01:14.4]} 21. h5 {[%clk 0:01:36.1]} 21... Qd7 {[%clk 0:01:14.9]}
22. Nc3 {[%clk 0:01:20.9]} 22... Nc7 {[%clk 0:00:44]} 23. g5 {[%clk 0:01:17.6]}
23... fxg5 {[%clk 0:00:41.1]} 24. Bxg5 {[%clk 0:01:15.3]} 24... Be7 {[%clk
0:00:42.3]} 25. h6+ {[%clk 0:01:06.2]} 25... Kg8 {[%clk 0:00:42.1]} 26. Rfe1
{[%clk 0:00:49.8]} 26... Bxg5 {[%clk 0:00:21.5]} 27. Qxg5 {[%clk 0:00:51.7]}
27... Ne6 {[%clk 0:00:23.1]} 28. Qf6 {[%clk 0:00:40.3]} 28... Qe7 {[%clk
0:00:23.9]} 29. Ne4 {[%clk 0:00:34.8]} 29... Rxd4 {[%clk 0:00:21.2]} 30. Qxd4
{[%clk 0:00:29.3]} 30... Nxd4 {[%clk 0:00:19.2]} 31. Nf6+ {[%clk 0:00:30.9]}
31... Kh8 {[%clk 0:00:11.2]} 32. Rxe7 {[%clk 0:00:30.5]} 32... Rxe7 {[%clk
0:00:12.7]} 33. Rd1 {[%clk 0:00:32.2]} 33... Ne6 {[%clk 0:00:14.1]} 34. Rd6
{[%clk 0:00:25]} 34... Rc7 {[%clk 0:00:14.3]} 35. b4 {[%clk 0:00:23.2]} 35... b6
{[%clk 0:00:13.5]} 36. cxb6 {[%clk 0:00:11.1]} 36... axb6 {[%clk 0:00:15.4]} 37.
a4 {[%clk 0:00:12.9]} 37... c5 {[%clk 0:00:13.2]} 38. Rxb6 {[%clk 0:00:14.1]}
38... Rc8 {[%clk 0:00:13.3]} 39. a5 {[%clk 0:00:11.3]} 39... c4 {[%clk
0:00:07.4]} 40. Nd5 {[%clk 0:00:12.9]} 40... Kg8 {[%clk 0:00:05.3]} 41. Ne7+
{[%clk 0:00:13.5]} 41... Kf8 {[%clk 0:00:05.9]} 42. Nxc8 {[%clk 0:00:15.4]}
42... c3 {[%clk 0:00:07.8]} 43. Rc6 {[%clk 0:00:15.7]} 43... c2 {[%clk
0:00:09.7]} 44. Rxc2 {[%clk 0:00:16.6]} 44... Nd4 {[%clk 0:00:11.6]} 45. Ra2
{[%clk 0:00:17.9]} 1-0

[Event "***Titled Tuesday 3|2 Blitz"]
[Site "Chess.com"]
[Date "2017.02.07"]
[Round "4"]
[White "1stSecond"]
[Black "Rikikits"]
[Result "0-1"]
[WhiteElo "2582"]
[BlackElo "2633"]
[TimeControl "180+2"]
[EndTime "13:59:52 PST"]
[Termination "Rikikits won by checkmate"]

1. d4 {[%clk 0:03:00]} 1... Nf6 {[%clk 0:03:00.4]} 2. c4 {[%clk 0:02:59.2]} 2...
g6 {[%clk 0:03:00.5]} 3. Nc3 {[%clk 0:02:59.1]} 3... Bg7 {[%clk 0:03:01.7]} 4.
e4 {[%clk 0:02:59.5]} 4... O-O {[%clk 0:03:03.6]} 5. Nf3 {[%clk 0:03:00.1]} 5...
d6 {[%clk 0:03:04.8]} 6. h3 {[%clk 0:03:01]} 6... e5 {[%clk 0:03:04.5]} 7. d5
{[%clk 0:03:01.6]} 7... Na6 {[%clk 0:03:05.4]} 8. Be3 {[%clk 0:03:00]} 8... Nc5
{[%clk 0:03:06.3]} 9. Nd2 {[%clk 0:03:00.3]} 9... a5 {[%clk 0:03:07.3]} 10. g4
{[%clk 0:03:00.8]} 10... c6 {[%clk 0:03:08.3]} 11. b3 {[%clk 0:02:27.9]} 11...
Ne8 {[%clk 0:02:59.2]} 12. h4 {[%clk 0:02:17.3]} 12... f5 {[%clk 0:02:56.8]} 13.
gxf5 {[%clk 0:01:50.3]} 13... gxf5 {[%clk 0:02:58.7]} 14. exf5 {[%clk
0:01:45.6]} 14... Bxf5 {[%clk 0:02:59.3]} 15. Bxc5 {[%clk 0:01:46.1]} 15... dxc5
{[%clk 0:03:00]} 16. Nde4 {[%clk 0:01:47.5]} 16... b5 {[%clk 0:02:46.8]} 17. Bg2
{[%clk 0:01:00.6]} 17... b4 {[%clk 0:02:47.4]} 18. Ne2 {[%clk 0:00:47.1]} 18...
cxd5 {[%clk 0:02:45.9]} 19. cxd5 {[%clk 0:00:39.5]} 19... Nd6 {[%clk 0:02:35.2]}
20. N2g3 {[%clk 0:00:35.2]} 20... Bxe4 {[%clk 0:02:34.6]} 21. Nxe4 {[%clk
0:00:27.7]} 21... Rf4 {[%clk 0:02:32.1]} 22. Qd3 {[%clk 0:00:21.3]} 22... a4
{[%clk 0:02:16.3]} 23. Rc1 {[%clk 0:00:22]} 23... axb3 {[%clk 0:02:15.9]} 24.
axb3 {[%clk 0:00:23.9]} 24... c4 {[%clk 0:02:16.6]} 25. bxc4 {[%clk 0:00:24.7]}
25... Ra3 {[%clk 0:02:17.1]} 26. Qe2 {[%clk 0:00:24.7]} 26... Nxe4 {[%clk
0:02:07.3]} 27. Bxe4 {[%clk 0:00:26.6]} 27... b3 {[%clk 0:02:07.8]} 28. f3
{[%clk 0:00:26.9]} 28... Ra2 {[%clk 0:02:05]} 29. Qd3 {[%clk 0:00:26.1]} 29...
Qa5+ {[%clk 0:02:05.5]} 30. Kf1 {[%clk 0:00:26.6]} 30... b2 {[%clk 0:01:55.7]}
31. Rb1 {[%clk 0:00:26.8]} 31... Kh8 {[%clk 0:01:17.5]} 32. Rh2 {[%clk
0:00:26.4]} 32... Ra3 {[%clk 0:01:10.5]} 33. Qc2 {[%clk 0:00:21.8]} 33... Bf8
{[%clk 0:01:07.7]} 34. Qxb2 {[%clk 0:00:20.8]} 34... Bd6 {[%clk 0:01:00.5]} 35.
Rg2 {[%clk 0:00:18.4]} 35... Rf8 {[%clk 0:00:55.9]} 36. Qb7 {[%clk 0:00:15.9]}
36... Raxf3+ {[%clk 0:00:31.1]} 37. Bxf3 {[%clk 0:00:11]} 37... Rxf3+ {[%clk
0:00:33]} 38. Kg1 {[%clk 0:00:07.5]} 38... Qc5+ {[%clk 0:00:29.5]} 39. Kh2
{[%clk 0:00:08.7]} 39... e4+ {[%clk 0:00:30.4]} 40. Rg3 {[%clk 0:00:02.6]} 40...
Rxg3 {[%clk 0:00:27.9]} 41. Qa8+ {[%clk 0:00:02.2]} 41... Rg8+ {[%clk
0:00:28.2]} 42. Kh3 {[%clk 0:00:03.3]} 42... Qe3# {[%clk 0:00:28.4]} 0-1

[Event "***Titled Tuesday 3|2 Blitz"]
[Site "Chess.com"]
[Date "2017.02.07"]
[Round "4"]
[White "A-Fier"]
[Black "GeorgMeier"]
[Result "1/2-1/2"]
[WhiteElo "2502"]
[BlackElo "2677"]
[TimeControl "180+2"]
[EndTime "13:59:58 PST"]
[Termination "Game drawn by repetition"]

1. d4 {[%clk 0:03:02]} 1... e6 {[%clk 0:02:56.7]} 2. c4 {[%clk 0:03:03.8]} 2...
Nf6 {[%clk 0:02:57.8]} 3. Nc3 {[%clk 0:03:04.4]} 3... Bb4 {[%clk 0:02:58.7]} 4.
e3 {[%clk 0:03:05.9]} 4... O-O {[%clk 0:02:59.2]} 5. Ne2 {[%clk 0:03:06.4]} 5...
d5 {[%clk 0:02:59.3]} 6. a3 {[%clk 0:03:07.2]} 6... Bd6 {[%clk 0:03:00.4]} 7.
Ng3 {[%clk 0:03:06.6]} 7... c6 {[%clk 0:02:59.9]} 8. Be2 {[%clk 0:03:01.2]} 8...
Nbd7 {[%clk 0:03:00.8]} 9. O-O {[%clk 0:03:02]} 9... dxc4 {[%clk 0:02:56.2]} 10.
Bxc4 {[%clk 0:03:02.6]} 10... e5 {[%clk 0:02:57.7]} 11. Qc2 {[%clk 0:03:03]}
11... Nb6 {[%clk 0:02:44.5]} 12. Ba2 {[%clk 0:03:03.6]} 12... exd4 {[%clk
0:02:38.8]} 13. exd4 {[%clk 0:03:04.8]} 13... Bxg3 {[%clk 0:02:32.2]} 14. hxg3
{[%clk 0:03:05.4]} 14... Re8 {[%clk 0:02:08]} 15. Bg5 {[%clk 0:03:00.9]} 15...
Be6 {[%clk 0:01:40.8]} 16. Ne4 {[%clk 0:02:44.7]} 16... Bxa2 {[%clk 0:01:19.1]}
17. Bxf6 {[%clk 0:02:44.2]} 17... gxf6 {[%clk 0:01:12]} 18. Rxa2 {[%clk
0:02:45]} 18... Qxd4 {[%clk 0:01:12.7]} 19. Nc3 {[%clk 0:02:44.8]} 19... Rad8
{[%clk 0:01:10.9]} 20. Raa1 {[%clk 0:02:46]} 20... Qd2 {[%clk 0:01:05.1]} 21.
Qb3 {[%clk 0:02:45.4]} 21... Kg7 {[%clk 0:01:02.4]} 22. a4 {[%clk 0:02:44.4]}
22... Qd7 {[%clk 0:00:55.4]} 23. a5 {[%clk 0:02:44.9]} 23... Nd5 {[%clk
0:00:56.6]} 24. Ra4 {[%clk 0:02:45]} 24... Nxc3 {[%clk 0:00:52.4]} 25. Qxc3
{[%clk 0:02:45.7]} 25... Qe6 {[%clk 0:00:52.9]} 26. Rh4 {[%clk 0:02:39]} 26...
Rd5 {[%clk 0:00:52.2]} 27. b4 {[%clk 0:02:34.4]} 27... Red8 {[%clk 0:00:48.4]}
28. Qc2 {[%clk 0:02:34.8]} 28... h6 {[%clk 0:00:49.4]} 29. Qc1 {[%clk
0:02:34.5]} 29... f5 {[%clk 0:00:41.2]} 30. a6 {[%clk 0:02:29.3]} 30... b6
{[%clk 0:00:37.5]} 31. Rc4 {[%clk 0:02:29.8]} 31... R8d6 {[%clk 0:00:38.5]} 32.
Qc3+ {[%clk 0:02:22.8]} 32... Qf6 {[%clk 0:00:39.3]} 33. Qf3 {[%clk 0:02:22.7]}
33... Rd3 {[%clk 0:00:39.3]} 34. Qe2 {[%clk 0:02:22.9]} 34... Rd2 {[%clk
0:00:39]} 35. Qe3 {[%clk 0:02:22.6]} 35... R2d3 {[%clk 0:00:38.3]} 36. Qe2
{[%clk 0:02:23.3]} 36... Rd2 {[%clk 0:00:39.3]} 37. Qe3 {[%clk 0:02:24.6]} 37...
Rd1 {[%clk 0:00:27.5]} 38. Rxd1 {[%clk 0:02:24.1]} 38... Rxd1+ {[%clk
0:00:28.5]} 39. Kh2 {[%clk 0:02:26]} 39... Qa1 {[%clk 0:00:22.8]} 40. g4 {[%clk
0:02:19.8]} 40... Rh1+ {[%clk 0:00:18.9]} 41. Kg3 {[%clk 0:02:21]} 41... Qf6
{[%clk 0:00:15.5]} 42. gxf5 {[%clk 0:02:22.4]} 42... Qxf5 {[%clk 0:00:13.3]} 43.
Rg4+ {[%clk 0:02:20.8]} 43... Kf8 {[%clk 0:00:12.7]} 44. Qd4 {[%clk 0:02:21.3]}
44... Qd5 {[%clk 0:00:12]} 45. Qf4 {[%clk 0:02:15]} 45... Qd3+ {[%clk
0:00:07.9]} 46. f3 {[%clk 0:02:16.1]} 46... Rd1 {[%clk 0:00:07.8]} 47. Qxh6+
{[%clk 0:02:15.6]} 47... Ke7 {[%clk 0:00:09.2]} 48. Re4+ {[%clk 0:02:17.2]}
48... Kd7 {[%clk 0:00:10.5]} 49. Qf6 {[%clk 0:02:15.6]} 49... Qd6+ {[%clk
0:00:11.5]} 50. Qf4 {[%clk 0:02:12]} 50... Qxf4+ {[%clk 0:00:12]} 51. Kxf4
{[%clk 0:02:13.9]} 51... Rd5 {[%clk 0:00:12.6]} 52. g4 {[%clk 0:02:13.3]} 52...
c5 {[%clk 0:00:11.8]} 53. g5 {[%clk 0:02:07]} 53... cxb4 {[%clk 0:00:11.4]} 54.
Rxb4 {[%clk 0:02:08.9]} 54... Ra5 {[%clk 0:00:12.8]} 55. Re4 {[%clk 0:02:08.4]}
55... Rc5 {[%clk 0:00:08.9]} 56. Kg4 {[%clk 0:02:07.5]} 56... Ra5 {[%clk
0:00:09.9]} 57. f4 {[%clk 0:02:08.1]} 57... Rxa6 {[%clk 0:00:11]} 58. f5 {[%clk
0:02:05.5]} 58... Ra1 {[%clk 0:00:11.5]} 59. Rd4+ {[%clk 0:01:51.9]} 59... Ke7
{[%clk 0:00:12.7]} 60. f6+ {[%clk 0:01:53.4]} 60... Ke6 {[%clk 0:00:13.8]} 61.
Re4+ {[%clk 0:01:54.9]} 61... Kd6 {[%clk 0:00:15.1]} 62. Re7 {[%clk 0:01:56.4]}
62... Rg1+ {[%clk 0:00:16.2]} 63. Kf4 {[%clk 0:01:47.5]} 63... Rf1+ {[%clk
0:00:17.4]} 64. Kg4 {[%clk 0:01:46.2]} 64... Rg1+ {[%clk 0:00:18.8]} 65. Kh5
{[%clk 0:01:47.6]} 65... Rh1+ {[%clk 0:00:20.1]} 66. Kg4 {[%clk 0:01:49.1]}
66... Rg1+ {[%clk 0:00:21.8]} 67. Kh4 {[%clk 0:01:50.5]} 67... Rh1+ {[%clk
0:00:23.1]} 68. Kg3 {[%clk 0:01:51.9]} 68... Rg1+ {[%clk 0:00:24.6]} 69. Kf4
{[%clk 0:01:53.4]} 69... Rf1+ {[%clk 0:00:25.9]} 70. Kg4 {[%clk 0:01:54.3]}
70... Rg1+ {[%clk 0:00:27.4]} 71. Kf5 {[%clk 0:01:55.7]} 71... Rf1+ {[%clk
0:00:28.3]} 72. Kg4 {[%clk 0:01:57.1]} 72... Rg1+ {[%clk 0:00:29.8]} 1/2-1/2